[Event "*** Titled Tuesday Blitz"]
[Site "Chess.com"]
[Date "2019.12.03"]
[Round "2"]
[White "eCztery"]
[Black "CzechmVIII"]
[Result "1-0"]
[WhiteElo "2412"]
[BlackElo "2118"]
[TimeControl "180+2"]
[EndTime "13:20:47 PST"]
[Termination "eCztery won by resignation"]

1. d4 {[%clk 0:03:01.9]} 1... Nf6 {[%clk 0:03:00.1]} 2. Nc3 {[%clk 0:03:02.5]}
2... d5 {[%clk 0:03:00.3]} 3. Bf4 {[%clk 0:03:02.2]} 3... c6 {[%clk 0:02:59.3]}
4. f3 {[%clk 0:03:01.4]} 4... g6 {[%clk 0:02:43.1]} 5. e4 {[%clk 0:02:53.6]}
5... Bg7 {[%clk 0:02:40.3]} 6. h4 {[%clk 0:02:49.9]} 6... b5 {[%clk 0:02:33.2]}
7. e5 {[%clk 0:02:44.2]} 7... Nh5 {[%clk 0:02:19.8]} 8. Bh2 {[%clk 0:02:44.7]}
8... b4 {[%clk 0:01:50.7]} 9. Nce2 {[%clk 0:02:35.3]} 9... e6 {[%clk 0:01:44.5]}
10. g3 {[%clk 0:02:13.8]} 10... c5 {[%clk 0:01:35.7]} 11. Nh3 {[%clk 0:01:54.3]}
11... cxd4 {[%clk 0:01:29]} 12. Nxd4 {[%clk 0:01:46.8]} 12... Bxe5 {[%clk
0:01:16.3]} 13. Bb5+ {[%clk 0:01:40.5]} 13... Bd7 {[%clk 0:01:09.9]} 14. Bxd7+
{[%clk 0:01:38.6]} 14... Qxd7 {[%clk 0:01:09.1]} 15. g4 {[%clk 0:01:32]} 15...
Bxh2 {[%clk 0:01:09.7]} 16. Rxh2 {[%clk 0:01:33.9]} 16... Ng7 {[%clk 0:01:09]}
17. Qd2 {[%clk 0:01:34.1]} 17... Nc6 {[%clk 0:00:55.4]} 18. O-O-O {[%clk
0:01:31.5]} 18... Rc8 {[%clk 0:00:41.8]} 19. Kb1 {[%clk 0:01:28]} 19... h5
{[%clk 0:00:38.5]} 20. Ng5 {[%clk 0:01:14.7]} 20... hxg4 {[%clk 0:00:23.8]} 21.
Nxc6 {[%clk 0:01:14.7]} 21... Qxc6 {[%clk 0:00:22.1]} 22. fxg4 {[%clk
0:01:13.6]} 22... a5 {[%clk 0:00:20.2]} 23. Qd4 {[%clk 0:01:10.7]} 23... Rg8
{[%clk 0:00:17.2]} 24. Nh7 {[%clk 0:01:01.6]} 24... Qc4 {[%clk 0:00:12.9]} 25.
Nf6+ {[%clk 0:00:58.6]} 25... Kf8 {[%clk 0:00:13.6]} 26. Nxg8 {[%clk 0:00:43]}
26... Qxd4 {[%clk 0:00:13]} 27. Rxd4 {[%clk 0:00:44.9]} 27... Kxg8 {[%clk
0:00:14.4]} 28. Rf2 {[%clk 0:00:42]} 28... Rc4 {[%clk 0:00:12.5]} 29. Rxc4
{[%clk 0:00:42.6]} 29... dxc4 {[%clk 0:00:13.8]} 30. Rf4 {[%clk 0:00:43.5]}
30... c3 {[%clk 0:00:13.9]} 31. bxc3 {[%clk 0:00:45.4]} 31... bxc3 {[%clk
0:00:14.5]} 32. Rc4 {[%clk 0:00:47.3]} 32... f5 {[%clk 0:00:15.6]} 33. gxf5
{[%clk 0:00:48.2]} 33... Nxf5 {[%clk 0:00:16.5]} 34. Rxc3 {[%clk 0:00:47.8]}
34... Nxh4 {[%clk 0:00:17.3]} 35. Rc5 {[%clk 0:00:48.3]} 35... a4 {[%clk
0:00:17.2]} 36. Rc4 {[%clk 0:00:49.8]} 36... a3 {[%clk 0:00:17.3]} 37. Rxh4
{[%clk 0:00:50.6]} 1-0

[Event "*** Titled Tuesday Blitz"]
[Site "Chess.com"]
[Date "2019.12.03"]
[Round "2"]
[White "HouseOfDurin"]
[Black "petincash"]
[Result "0-1"]
[WhiteElo "2102"]
[BlackElo "2411"]
[TimeControl "180+2"]
[EndTime "13:20:48 PST"]
[Termination "petincash won on time"]

1. d4 {[%clk 0:03:01.9]} 1... Nf6 {[%clk 0:03:00.6]} 2. Bg5 {[%clk 0:03:03.2]}
2... Ne4 {[%clk 0:03:00.8]} 3. h4 {[%clk 0:03:03.6]} 3... c5 {[%clk 0:02:59.6]}
4. dxc5 {[%clk 0:03:04.3]} 4... Qa5+ {[%clk 0:02:57.8]} 5. Nd2 {[%clk
0:03:05.4]} 5... Nxg5 {[%clk 0:02:43.4]} 6. hxg5 {[%clk 0:03:05.7]} 6... Qxc5
{[%clk 0:02:38.7]} 7. Ngf3 {[%clk 0:03:03.3]} 7... Nc6 {[%clk 0:02:38.1]} 8. e3
{[%clk 0:03:00.1]} 8... h5 {[%clk 0:02:27.4]} 9. gxh6 {[%clk 0:02:58.5]} 9...
Rxh6 {[%clk 0:02:26.5]} 10. Rxh6 {[%clk 0:02:58.3]} 10... gxh6 {[%clk
0:02:28.4]} 11. Nb3 {[%clk 0:02:53.4]} 11... Qb6 {[%clk 0:02:20.3]} 12. Nfd4
{[%clk 0:02:34.8]} 12... d6 {[%clk 0:02:09.6]} 13. Qh5 {[%clk 0:02:17.6]} 13...
Nxd4 {[%clk 0:01:38.5]} 14. exd4 {[%clk 0:02:14.1]} 14... Bd7 {[%clk 0:01:30.5]}
15. O-O-O {[%clk 0:02:05.6]} 15... a5 {[%clk 0:01:22]} 16. Bc4 {[%clk
0:01:45.9]} 16... e6 {[%clk 0:01:18]} 17. d5 {[%clk 0:01:37.3]} 17... e5 {[%clk
0:01:05.3]} 18. f3 {[%clk 0:01:13.4]} 18... a4 {[%clk 0:01:00.5]} 19. Nd2 {[%clk
0:01:13.9]} 19... a3 {[%clk 0:00:58.9]} 20. b3 {[%clk 0:01:08.3]} 20... Rc8
{[%clk 0:00:54.1]} 21. Ne4 {[%clk 0:00:45.5]} 21... Qe3+ {[%clk 0:00:38.6]} 22.
Rd2 {[%clk 0:00:46.7]} 22... Be7 {[%clk 0:00:30.8]} 23. Qh1 {[%clk 0:00:17]}
23... b5 {[%clk 0:00:30.3]} 24. Bd3 {[%clk 0:00:16]} 24... f5 {[%clk 0:00:29.7]}
25. Qh5+ {[%clk 0:00:12.7]} 25... Kd8 {[%clk 0:00:28.3]} 26. Ng3 {[%clk
0:00:06.7]} 26... Bg5 {[%clk 0:00:28.4]} 0-1

[Event "*** Titled Tuesday Blitz"]
[Site "Chess.com"]
[Date "2019.12.03"]
[Round "2"]
[White "nitpicker"]
[Black "LastHeroJr"]
[Result "0-1"]
[WhiteElo "2314"]
[BlackElo "2558"]
[TimeControl "180+2"]
[EndTime "13:20:54 PST"]
[Termination "LastHeroJr won on time"]

1. d4 {[%clk 0:02:24.4]} 1... Nf6 {[%clk 0:02:59.4]} 2. c4 {[%clk 0:02:23]} 2...
g6 {[%clk 0:03:00.5]} 3. Nc3 {[%clk 0:02:23.1]} 3... Bg7 {[%clk 0:03:01.7]} 4.
e4 {[%clk 0:02:23]} 4... d6 {[%clk 0:03:03]} 5. Be2 {[%clk 0:02:23.9]} 5... O-O
{[%clk 0:03:03.9]} 6. Nf3 {[%clk 0:02:24.8]} 6... e5 {[%clk 0:03:04.1]} 7. O-O
{[%clk 0:02:25.4]} 7... Nc6 {[%clk 0:03:05.3]} 8. d5 {[%clk 0:02:25.9]} 8... Ne7
{[%clk 0:03:06.5]} 9. b4 {[%clk 0:02:26.9]} 9... Re8 {[%clk 0:03:04.1]} 10. a4
{[%clk 0:02:22.7]} 10... c6 {[%clk 0:02:46.3]} 11. Ba3 {[%clk 0:02:18.5]} 11...
cxd5 {[%clk 0:02:44.6]} 12. cxd5 {[%clk 0:02:14]} 12... Nh5 {[%clk 0:02:16.5]}
13. Nd2 {[%clk 0:01:51.2]} 13... Nf4 {[%clk 0:02:16]} 14. Bf3 {[%clk 0:01:47.5]}
14... f5 {[%clk 0:02:12.8]} 15. Nc4 {[%clk 0:01:42.8]} 15... fxe4 {[%clk
0:01:52.1]} 16. Bxe4 {[%clk 0:01:23.6]} 16... Bf5 {[%clk 0:01:35]} 17. f3 {[%clk
0:01:20.5]} 17... Rc8 {[%clk 0:01:34.5]} 18. Qb3 {[%clk 0:00:48.3]} 18... Qc7
{[%clk 0:01:35.2]} 19. Nb5 {[%clk 0:00:48.8]} 19... Qxc4 {[%clk 0:01:35.6]} 20.
Qxc4 {[%clk 0:00:49.9]} 20... Rxc4 {[%clk 0:01:37.5]} 21. Nxd6 {[%clk
0:00:51.1]} 21... Rec8 {[%clk 0:01:23.9]} 22. Nxc4 {[%clk 0:00:43.8]} 22... Rxc4
{[%clk 0:01:25.4]} 23. d6 {[%clk 0:00:45.2]} 23... Nc6 {[%clk 0:01:06.2]} 24. g3
{[%clk 0:00:38.3]} 24... Ne2+ {[%clk 0:01:00.5]} 25. Kf2 {[%clk 0:00:39]} 25...
Bxe4 {[%clk 0:00:56.7]} 26. fxe4 {[%clk 0:00:27.5]} 26... Nc3 {[%clk 0:00:56.9]}
27. b5 {[%clk 0:00:21.4]} 27... Nb8 {[%clk 0:00:55.6]} 28. Rac1 {[%clk
0:00:20.9]} 28... Bh6 {[%clk 0:00:53.2]} 29. Rce1 {[%clk 0:00:15.9]} 29... Nd7
{[%clk 0:00:53.2]} 30. Bb2 {[%clk 0:00:12.4]} 30... Nxe4+ {[%clk 0:00:52.2]} 31.
Kf3 {[%clk 0:00:10.1]} 31... Nd2+ {[%clk 0:00:52.5]} 32. Ke2 {[%clk 0:00:09.5]}
32... Nxf1 {[%clk 0:00:53.6]} 33. Kxf1 {[%clk 0:00:10.8]} 33... e4 {[%clk
0:00:49.2]} 34. Re2 {[%clk 0:00:05.5]} 34... Kf7 {[%clk 0:00:49.1]} 0-1

[Event "*** Titled Tuesday Blitz"]
[Site "Chess.com"]
[Date "2019.12.03"]
[Round "2"]
[White "cool4chess"]
[Black "AbasovN"]
[Result "1-0"]
[WhiteElo "2584"]
[BlackElo "2786"]
[TimeControl "180+2"]
[EndTime "13:21:00 PST"]
[Termination "cool4chess won by checkmate"]

1. e4 {[%clk 0:02:37.1]} 1... c5 {[%clk 0:02:55.6]} 2. Nf3 {[%clk 0:02:37.5]}
2... Nc6 {[%clk 0:02:57.1]} 3. Bb5 {[%clk 0:02:37.9]} 3... g6 {[%clk 0:02:58.5]}
4. O-O {[%clk 0:02:39.1]} 4... Bg7 {[%clk 0:02:57.4]} 5. Re1 {[%clk 0:02:39.7]}
5... e5 {[%clk 0:02:53.4]} 6. b4 {[%clk 0:02:40.7]} 6... cxb4 {[%clk 0:02:51.1]}
7. a3 {[%clk 0:02:42]} 7... Nge7 {[%clk 0:02:51.4]} 8. axb4 {[%clk 0:02:43.2]}
8... Nxb4 {[%clk 0:02:52]} 9. Ba3 {[%clk 0:02:36.6]} 9... Nbc6 {[%clk
0:02:49.6]} 10. Bd6 {[%clk 0:02:37.1]} 10... O-O {[%clk 0:02:49.6]} 11. Nc3
{[%clk 0:02:38.2]} 11... b6 {[%clk 0:02:43.9]} 12. Nd5 {[%clk 0:02:37.5]} 12...
Bb7 {[%clk 0:02:04.3]} 13. Bxc6 {[%clk 0:02:18.4]} 13... Nxc6 {[%clk 0:02:06.2]}
14. Bxf8 {[%clk 0:02:19.9]} 14... Qxf8 {[%clk 0:02:04.9]} 15. d3 {[%clk
0:02:13.6]} 15... Nb4 {[%clk 0:02:02.1]} 16. Ne3 {[%clk 0:02:14.9]} 16... Rc8
{[%clk 0:02:00.6]} 17. Rxa7 {[%clk 0:02:12.3]} 17... Rc7 {[%clk 0:01:51.2]} 18.
Qb1 {[%clk 0:02:09.2]} 18... Qc5 {[%clk 0:01:48.9]} 19. c4 {[%clk 0:02:01.4]}
19... h6 {[%clk 0:01:45.6]} 20. Nd5 {[%clk 0:01:56.3]} 20... Nxd5 {[%clk
0:01:38.1]} 21. exd5 {[%clk 0:01:57.2]} 21... d6 {[%clk 0:01:38.1]} 22. Qb3
{[%clk 0:01:48.3]} 22... b5 {[%clk 0:00:45.3]} 23. Ra5 {[%clk 0:01:42.5]} 23...
Bc8 {[%clk 0:00:46.6]} 24. Rxb5 {[%clk 0:01:40]} 24... Qa7 {[%clk 0:00:47.6]}
25. h3 {[%clk 0:01:34.5]} 25... Kh7 {[%clk 0:00:47.5]} 26. Rb1 {[%clk 0:01:29]}
26... f5 {[%clk 0:00:45.4]} 27. Nd2 {[%clk 0:01:25.3]} 27... h5 {[%clk 0:00:43]}
28. Nf3 {[%clk 0:01:23]} 28... Bf6 {[%clk 0:00:40.4]} 29. Qb4 {[%clk 0:01:23.9]}
29... e4 {[%clk 0:00:34.1]} 30. Ra5 {[%clk 0:01:20.4]} 30... Ba6 {[%clk
0:00:25.5]} 31. Qxd6 {[%clk 0:01:17.5]} 31... Rb7 {[%clk 0:00:14.5]} 32. Rxb7+
{[%clk 0:01:18.3]} 32... Qxb7 {[%clk 0:00:16.4]} 33. Qxf6 {[%clk 0:01:19.2]}
33... exf3 {[%clk 0:00:17.8]} 34. gxf3 {[%clk 0:01:13.8]} 34... Qb1+ {[%clk
0:00:17]} 35. Kg2 {[%clk 0:01:15.1]} 35... Bb7 {[%clk 0:00:18.2]} 36. Ra7 {[%clk
0:01:15.8]} 36... Kh6 {[%clk 0:00:19.6]} 37. Qh8+ {[%clk 0:01:16.5]} 37... Kg5
{[%clk 0:00:20.9]} 38. h4+ {[%clk 0:01:13.2]} 38... Kxh4 {[%clk 0:00:20.9]} 39.
Qf6+ {[%clk 0:01:12.1]} 39... g5 {[%clk 0:00:20.9]} 40. Qxf5 {[%clk 0:01:10.1]}
40... Bc8 {[%clk 0:00:18.8]} 41. Qxc8 {[%clk 0:01:08.1]} 41... Qxd3 {[%clk
0:00:13.5]} 42. Qh3# {[%clk 0:01:07.7]} 1-0

[Event "*** Titled Tuesday Blitz"]
[Site "Chess.com"]
[Date "2019.12.03"]
[Round "2"]
[White "HanSchut"]
[Black "chessdjw"]
[Result "0-1"]
[WhiteElo "2337"]
[BlackElo "2680"]
[TimeControl "180+2"]
[EndTime "13:21:00 PST"]
[Termination "chessdjw won by checkmate"]

1. e4 {[%clk 0:03:01.9]} 1... c5 {[%clk 0:03:00.2]} 2. Nf3 {[%clk 0:03:02.4]}
2... Nc6 {[%clk 0:03:00.8]} 3. d4 {[%clk 0:03:00.1]} 3... cxd4 {[%clk 0:03:00]}
4. Nxd4 {[%clk 0:03:02]} 4... Nf6 {[%clk 0:03:00.3]} 5. Nc3 {[%clk 0:03:02.4]}
5... e5 {[%clk 0:03:00.1]} 6. Ndb5 {[%clk 0:03:02.6]} 6... d6 {[%clk 0:03:01]}
7. Bg5 {[%clk 0:02:53.4]} 7... a6 {[%clk 0:03:00.9]} 8. Na3 {[%clk 0:02:53.7]}
8... b5 {[%clk 0:03:00.8]} 9. Bxf6 {[%clk 0:02:54.2]} 9... gxf6 {[%clk
0:02:59.5]} 10. Nd5 {[%clk 0:02:55.7]} 10... f5 {[%clk 0:02:59]} 11. c3 {[%clk
0:02:55.4]} 11... fxe4 {[%clk 0:02:51.8]} 12. Bxb5 {[%clk 0:02:55.1]} 12... axb5
{[%clk 0:02:48.1]} 13. Nxb5 {[%clk 0:02:57]} 13... Bg7 {[%clk 0:01:37]} 14.
Nbc7+ {[%clk 0:02:50.2]} 14... Kf8 {[%clk 0:01:37]} 15. Nxa8 {[%clk 0:02:50.8]}
15... Ba6 {[%clk 0:01:36.7]} 16. Nac7 {[%clk 0:02:42.9]} 16... Bd3 {[%clk
0:01:36.6]} 17. Qg4 {[%clk 0:02:27.8]} 17... h5 {[%clk 0:01:20.9]} 18. Qf5
{[%clk 0:02:27.1]} 18... Kg8 {[%clk 0:01:21.9]} 19. b4 {[%clk 0:01:52.4]} 19...
Rh6 {[%clk 0:01:17.6]} 20. a4 {[%clk 0:01:41.2]} 20... Rg6 {[%clk 0:01:07.8]}
21. h4 {[%clk 0:01:39.1]} 21... Rxg2 {[%clk 0:00:47.8]} 22. O-O-O {[%clk
0:01:10.1]} 22... Ne7 {[%clk 0:00:34]} 23. Nxe7+ {[%clk 0:00:59.9]} 23... Qxe7
{[%clk 0:00:35.9]} 24. Qc8+ {[%clk 0:00:46.6]} 24... Kh7 {[%clk 0:00:34.1]} 25.
Rdg1 {[%clk 0:00:43.5]} 25... Bh6+ {[%clk 0:00:21.9]} 26. Kd1 {[%clk 0:00:22.7]}
26... Qxh4 {[%clk 0:00:19.8]} 27. Qe8 {[%clk 0:00:10]} 27... Qxf2 {[%clk
0:00:19.1]} 28. Rxg2 {[%clk 0:00:07.5]} 28... Qf3+ {[%clk 0:00:18.8]} 29. Ke1
{[%clk 0:00:05.9]} 29... Qe3+ {[%clk 0:00:19.8]} 30. Kd1 {[%clk 0:00:06.9]}
30... Qc1# {[%clk 0:00:20.6]} 0-1

[Event "*** Titled Tuesday Blitz"]
[Site "Chess.com"]
[Date "2019.12.03"]
[Round "2"]
[White "PawnEatingZombie"]
[Black "LucaBrasi1968"]
[Result "0-1"]
[WhiteElo "2121"]
[BlackElo "2414"]
[TimeControl "180+2"]
[EndTime "13:21:03 PST"]
[Termination "LucaBrasi1968 won by resignation"]

1. d4 {[%clk 0:03:01.9]} 1... f5 {[%clk 0:02:57.1]} 2. Nc3 {[%clk 0:03:02]} 2...
d5 {[%clk 0:02:57.4]} 3. Bf4 {[%clk 0:03:02.1]} 3... a6 {[%clk 0:02:57.5]} 4. e3
{[%clk 0:03:03]} 4... e6 {[%clk 0:02:58.8]} 5. Nf3 {[%clk 0:03:04.1]} 5... Nf6
{[%clk 0:03:00]} 6. Bd3 {[%clk 0:03:05.1]} 6... c5 {[%clk 0:03:01.1]} 7. dxc5
{[%clk 0:03:04.4]} 7... Bxc5 {[%clk 0:03:01.3]} 8. O-O {[%clk 0:03:05.9]} 8...
Nc6 {[%clk 0:03:02.2]} 9. Ne2 {[%clk 0:03:06.9]} 9... Qe7 {[%clk 0:03:02]} 10.
c4 {[%clk 0:03:07.8]} 10... O-O {[%clk 0:03:01.2]} 11. a3 {[%clk 0:03:00.6]}
11... Kh8 {[%clk 0:02:49.6]} 12. Rc1 {[%clk 0:03:00]} 12... e5 {[%clk
0:02:40.6]} 13. cxd5 {[%clk 0:03:00.4]} 13... exf4 {[%clk 0:02:35.7]} 14. dxc6
{[%clk 0:02:56]} 14... fxe3 {[%clk 0:02:35.3]} 15. Ned4 {[%clk 0:02:29]} 15...
exf2+ {[%clk 0:02:30.2]} 16. Kh1 {[%clk 0:02:20.7]} 16... Ng4 {[%clk 0:02:26.5]}
17. cxb7 {[%clk 0:02:01.1]} 17... Bxb7 {[%clk 0:02:26.6]} 18. Nxf5 {[%clk
0:02:02]} 18... Rxf5 {[%clk 0:02:20.7]} 19. Bxf5 {[%clk 0:02:02.8]} 19... Ne3
{[%clk 0:02:21.8]} 20. Qd3 {[%clk 0:01:53.8]} 20... Nxf1 {[%clk 0:02:13.2]} 21.
Rxf1 {[%clk 0:01:40.8]} 21... Rd8 {[%clk 0:02:06.3]} 22. Qc4 {[%clk 0:01:16.5]}
22... Ba7 {[%clk 0:01:57.5]} 23. h4 {[%clk 0:00:49.8]} 23... Rd4 {[%clk
0:01:38.5]} 24. Qe6 {[%clk 0:00:41.4]} 24... Qxe6 {[%clk 0:01:05.4]} 25. Bxe6
{[%clk 0:00:43.3]} 25... Bxf3 {[%clk 0:01:01.1]} 26. gxf3 {[%clk 0:00:43.7]}
26... Rxh4+ {[%clk 0:01:01.9]} 27. Kg2 {[%clk 0:00:43.7]} 27... Rh6 {[%clk
0:01:00.4]} 28. Bf5 {[%clk 0:00:39.1]} 28... Rf6 {[%clk 0:00:59.9]} 29. Be4
{[%clk 0:00:38.8]} 29... g6 {[%clk 0:00:57.2]} 30. Rc1 {[%clk 0:00:37]} 30...
Kg7 {[%clk 0:00:53.6]} 31. Rc7+ {[%clk 0:00:35.2]} 31... Rf7 {[%clk 0:00:54.7]}
32. Rc6 {[%clk 0:00:36.2]} 32... Rd7 {[%clk 0:00:50.7]} 33. Rxa6 {[%clk
0:00:33.1]} 33... Be3 {[%clk 0:00:51.6]} 34. Bc6 {[%clk 0:00:09.3]} 34... Rd1
{[%clk 0:00:50.7]} 35. Bb5 {[%clk 0:00:10.2]} 35... Rg1+ {[%clk 0:00:50.6]} 36.
Kh3 {[%clk 0:00:11.3]} 36... f1=Q+ {[%clk 0:00:51.9]} 37. Bxf1 {[%clk
0:00:12.3]} 37... Rxf1 {[%clk 0:00:53.4]} 38. Kg2 {[%clk 0:00:11.9]} 38... Rf2+
{[%clk 0:00:53.1]} 39. Kg3 {[%clk 0:00:12.7]} 39... Rxb2 {[%clk 0:00:54.5]} 0-1

[Event "*** Titled Tuesday Blitz"]
[Site "Chess.com"]
[Date "2019.12.03"]
[Round "2"]
[White "oskariot"]
[Black "Godzillator"]
[Result "1-0"]
[WhiteElo "2699"]
[BlackElo "2360"]
[TimeControl "180+2"]
[EndTime "13:21:18 PST"]
[Termination "oskariot won by resignation"]

1. e4 {[%clk 0:03:01.9]} 1... c6 {[%clk 0:03:01.1]} 2. d4 {[%clk 0:03:00.5]}
2... d5 {[%clk 0:03:02.2]} 3. Nd2 {[%clk 0:03:02.4]} 3... dxe4 {[%clk
0:03:03.2]} 4. Nxe4 {[%clk 0:03:00.5]} 4... Bf5 {[%clk 0:03:04.6]} 5. Ng3 {[%clk
0:03:01.4]} 5... Bg6 {[%clk 0:03:05.9]} 6. c3 {[%clk 0:03:03.3]} 6... e6 {[%clk
0:03:05.9]} 7. Nh3 {[%clk 0:03:02.7]} 7... Bd6 {[%clk 0:03:04.2]} 8. Nf4 {[%clk
0:03:03.6]} 8... Qc7 {[%clk 0:03:04.9]} 9. Qf3 {[%clk 0:03:04.1]} 9... Nf6
{[%clk 0:02:58.3]} 10. h4 {[%clk 0:03:04.6]} 10... h6 {[%clk 0:02:33.3]} 11.
Nxg6 {[%clk 0:03:03.8]} 11... fxg6 {[%clk 0:02:34.5]} 12. Bd3 {[%clk 0:02:50]}
12... O-O {[%clk 0:02:34.9]} 13. Bxg6 {[%clk 0:02:43.4]} 13... Nd5 {[%clk
0:02:34.9]} 14. Qg4 {[%clk 0:02:37.3]} 14... Rf6 {[%clk 0:02:28.4]} 15. Ne4
{[%clk 0:02:32.6]} 15... e5 {[%clk 0:02:09.7]} 16. Nxf6+ {[%clk 0:02:28.5]}
16... Nxf6 {[%clk 0:02:10.2]} 17. Qe6+ {[%clk 0:02:26]} 17... Kh8 {[%clk
0:02:09]} 18. dxe5 {[%clk 0:02:01]} 18... Bxe5 {[%clk 0:02:10]} 19. O-O {[%clk
0:01:44.2]} 19... Nbd7 {[%clk 0:02:09.1]} 20. Re1 {[%clk 0:01:42.1]} 20... Bh2+
{[%clk 0:02:02.9]} 21. Kh1 {[%clk 0:01:39.1]} 21... Rf8 {[%clk 0:02:02]} 22. Be3
{[%clk 0:01:14.6]} 22... Bf4 {[%clk 0:01:35.5]} 23. Rad1 {[%clk 0:01:13.8]}
23... Bxe3 {[%clk 0:01:35.1]} 24. Rxe3 {[%clk 0:01:14.6]} 24... Qf4 {[%clk
0:01:28.5]} 25. Rf3 {[%clk 0:00:52.3]} 25... Qxh4+ {[%clk 0:01:28.8]} 26. Qh3
{[%clk 0:00:53]} 26... Qg5 {[%clk 0:01:26.3]} 27. Qg3 {[%clk 0:00:50.4]} 27...
Qb5 {[%clk 0:01:19.8]} 28. Bf5 {[%clk 0:00:38.5]} 28... Ne5 {[%clk 0:01:07.7]}
29. Re3 {[%clk 0:00:33.4]} 29... Nf7 {[%clk 0:01:01.9]} 30. Bg6 {[%clk
0:00:21.8]} 30... Ng5 {[%clk 0:00:46.9]} 31. Qd6 {[%clk 0:00:22.8]} 31... Rg8
{[%clk 0:00:39.8]} 32. b3 {[%clk 0:00:24]} 32... Qa5 {[%clk 0:00:21.5]} 33. Qb4
{[%clk 0:00:18.9]} 33... Qc7 {[%clk 0:00:20.9]} 34. Kg1 {[%clk 0:00:19.1]} 34...
Ng4 {[%clk 0:00:21.2]} 35. Qxg4 {[%clk 0:00:19.8]} 1-0

[Event "*** Titled Tuesday Blitz"]
[Site "Chess.com"]
[Date "2019.12.03"]
[Round "2"]
[White "bubacik"]
[Black "Squirlolz"]
[Result "0-1"]
[WhiteElo "2763"]
[BlackElo "2587"]
[TimeControl "180+2"]
[EndTime "13:21:22 PST"]
[Termination "Squirlolz won by resignation"]

1. d4 {[%clk 0:03:01.9]} 1... Nf6 {[%clk 0:03:00.2]} 2. c4 {[%clk 0:03:03.6]}
2... e6 {[%clk 0:03:01.4]} 3. Nc3 {[%clk 0:03:02.9]} 3... Bb4 {[%clk 0:03:01.9]}
4. e3 {[%clk 0:03:03.5]} 4... O-O {[%clk 0:03:02.5]} 5. Nf3 {[%clk 0:03:05.1]}
5... d5 {[%clk 0:03:03.5]} 6. Bd3 {[%clk 0:03:06.6]} 6... dxc4 {[%clk
0:02:57.8]} 7. Bxc4 {[%clk 0:03:02.5]} 7... c5 {[%clk 0:02:59]} 8. O-O {[%clk
0:03:03.4]} 8... cxd4 {[%clk 0:02:55.4]} 9. exd4 {[%clk 0:03:05.3]} 9... b6
{[%clk 0:02:56.6]} 10. Bg5 {[%clk 0:03:04.2]} 10... Bb7 {[%clk 0:02:57.3]} 11.
Qe2 {[%clk 0:03:05.5]} 11... Bxc3 {[%clk 0:02:55.6]} 12. bxc3 {[%clk 0:03:06.2]}
12... Nbd7 {[%clk 0:02:57.3]} 13. Ne5 {[%clk 0:03:05]} 13... Rc8 {[%clk
0:02:50.3]} 14. Nxd7 {[%clk 0:03:02.7]} 14... Qxd7 {[%clk 0:02:49.3]} 15. Bxf6
{[%clk 0:03:03.9]} 15... gxf6 {[%clk 0:02:48.4]} 16. Rad1 {[%clk 0:03:03.2]}
16... Qc6 {[%clk 0:02:33.3]} 17. Qg4+ {[%clk 0:02:13.8]} 17... Kh8 {[%clk
0:02:33.1]} 18. Be2 {[%clk 0:02:14.9]} 18... Rg8 {[%clk 0:02:27.4]} 19. d5
{[%clk 0:02:16.3]} 19... Qxc3 {[%clk 0:01:52.8]} 20. Qh5 {[%clk 0:01:56]} 20...
Bxd5 {[%clk 0:01:48.1]} 21. Rxd5 {[%clk 0:01:57.2]} 21... exd5 {[%clk 0:01:50]}
22. Qxf7 {[%clk 0:01:43.2]} 22... Rg7 {[%clk 0:01:25.7]} 23. Qxd5 {[%clk
0:01:33.6]} 23... Qc6 {[%clk 0:01:22]} 24. Bf3 {[%clk 0:00:54.1]} 24... Qxd5
{[%clk 0:01:21.6]} 25. Bxd5 {[%clk 0:00:56]} 25... Rgc7 {[%clk 0:01:15.6]} 26.
Be6 {[%clk 0:00:53.2]} 26... Re8 {[%clk 0:01:11.1]} 27. Bb3 {[%clk 0:00:51.7]}
27... Re5 {[%clk 0:01:09.4]} 28. g4 {[%clk 0:00:40]} 28... Rec5 {[%clk
0:01:05.4]} 29. Kg2 {[%clk 0:00:23.3]} 29... Rc1 {[%clk 0:01:05.8]} 30. Rxc1
{[%clk 0:00:23.4]} 30... Rxc1 {[%clk 0:01:07.7]} 31. f4 {[%clk 0:00:24.2]} 31...
Rc3 {[%clk 0:01:06.7]} 32. h4 {[%clk 0:00:22.9]} 32... a5 {[%clk 0:00:59.2]} 33.
g5 {[%clk 0:00:23.8]} 33... Kg7 {[%clk 0:00:53.2]} 34. h5 {[%clk 0:00:24.8]}
34... fxg5 {[%clk 0:00:36.2]} 35. fxg5 {[%clk 0:00:26.7]} 35... Rxb3 {[%clk
0:00:27.4]} 36. axb3 {[%clk 0:00:25]} 36... b5 {[%clk 0:00:28.7]} 37. Kf3 {[%clk
0:00:15]} 37... a4 {[%clk 0:00:29.7]} 38. bxa4 {[%clk 0:00:15.2]} 38... bxa4
{[%clk 0:00:31]} 39. Ke3 {[%clk 0:00:17.1]} 39... a3 {[%clk 0:00:32.2]} 0-1